bitfinex-derivatives/quotes_ETHF0:USTF0_20250816
["timestamp","ask_amount","ask_price","bid_price","bid_amount"]
[1755356973018,1.2135,4408.1,4408.0,1.4939]
[1755356973519,1.2135,4408.1,4406.7,3.2078]
[1755356973520,1.4761,4408.1,4406.7,3.2304]
[1755356973725,0.8693,4408.0,4407.7,0.3735]
[1755356973926,0.0226,4407.7,4406.1,0.3735]
[1755356974229,0.3636,4407.0,4406.1,0.3735]
[1755356974423,3.8146,4406.8,4406.7,0.1657]
[1755356974623,3.6471,4406.8,4406.7,0.9681]
[1755356974823,3.8146,4406.8,4406.7,0.9681]
[1755356975129,0.1752,4406.2,4406.1,0.6495]
[1755356975428,0.60734112,4406.2,4406.1,0.6495]
[1755356975627,0.60734112,4406.2,4406.1,1.0459]
[1755356975819,0.60734112,4406.2,4406.1,0.8384]
[1755356976026,0.86994112,4406.2,4406.1,1.0459]
[1755356976223,0.60734112,4406.2,4406.1,1.0459]
[1755356976629,2.08344112,4406.2,4406.1,0.8384]
[1755356978829,0.6068,4405.6,4405.5,1.0459]
[1755356979035,1.4761,4405.6,4405.5,1.0459]
[1755356979234,1.1125,4405.6,4405.5,1.0459]
[1755356979536,1.1125,4405.6,4405.5,0.8384]
[1755356979739,1.4761,4405.6,4405.5,0.8384]
[1755356980739,1.69236552,4405.6,4405.5,0.8384]
[1755356981034,0.6067,4405.5,4404.8,0.119]
[1755356981228,2.29975182,4405.4,4405.3,0.8384]
[1755356981426,2.29975182,4405.4,4404.7,3.2078]
[1755356981628,2.29975182,4405.4,4403.6,0.45389]
[1755356981629,1.69295182,4405.3,4404.3,0.5154]
[1755356981832,0.82365182,4405.2,4404.4,0.1889]
[1755356982033,3.2078,4405.3,4405.0,0.3401]
[1755356982034,2.03715182,4405.1,4405.0,0.3401]
[1755356982236,2.03715182,4405.1,4405.0,0.4591]
[1755356982635,2.29975182,4405.1,4405.0,0.4591]
[1755356983039,2.29975182,4405.1,4405.0,0.1657]
[1755356983336,2.29975182,4405.1,4404.7,0.119]
[1755356983337,0.8499,4404.9,4404.8,0.3401]
[1755356983534,1.4761,4404.8,4404.7,0.4591]
[1755356983932,0.6068,4404.8,4404.3,0.1889]
[1755356984135,0.6068,4404.5,4404.4,0.8384]
[1755356984433,0.2626,4404.5,4404.4,1.0459]
[1755356984632,0.5057,4404.8,4404.4,1.0459]
[1755356984833,0.2626,4404.7,4404.6,0.857]
[1755356985040,0.4378,4404.7,4404.6,1.0459]
[1755356985241,0.6067,4405.1,4404.6,1.0459]
[1755356985436,0.4378,4405.0,4404.9,0.5305]
[1755356985744,0.8694,4405.0,4404.9,1.0459]
[1755356986039,1.4761,4405.0,4404.9,0.8384]
[1755356987030,0.8693,4404.9,4404.7,0.00781439]
[1755356987235,1.4761,4404.8,4404.7,0.84621439]
[1755356987440,1.4761,4404.8,4404.7,0.29251439]
[1755356987940,1.4761,4404.8,4404.7,0.84621439]
[1755356988143,1.1125,4404.8,4404.7,1.05371439]
[1755356988437,0.8694,4404.8,4404.7,1.05371439]
[1755356988940,4.6983,4404.8,4404.7,0.00781439]
[1755356989742,4.6983,4404.8,4404.7,0.64671439]
[1755356989942,4.0772,4404.8,4404.7,1.04291439]
[1755356990238,4.3326,4404.8,4404.7,0.83551439]
[1755356990442,3.2078,4404.8,4404.7,1.04291439]
[1755356992756,0.4127,4405.4,4405.3,0.1638]
[1755356992940,0.4127,4405.4,4404.8,0.45377]
[1755356992941,3.2078,4405.6,4405.5,1.0351]
[1755356993540,3.2078,4406.3,4405.5,0.5201]
[1755356993744,4.0248,4406.3,4406.2,0.5201]
[1755356994044,4.6459,4406.3,4406.2,0.8277]
[1755356994745,3.7788,4406.3,4405.9,0.1888]
[1755356994947,0.6534,4406.0,4405.9,0.8277]
[1755356995340,0.9127,4406.0,4405.9,0.8277]
[1755356995645,1.4381,4406.0,4405.9,0.8277]
[1755356996745,0.3303,4405.7,4405.6,0.1188]
[1755356997049,1.4381,4405.4,4405.3,4.0355]
[1755356997548,1.4381,4405.4,4405.3,3.5378]
[1755356998247,1.4381,4405.4,4405.3,3.3716]
[1755356998441,0.571,4405.1,4405.0,0.6376]
[1755356998646,1.4381,4405.1,4405.0,0.8277]
[1755357000149,1.4381,4405.0,4404.9,0.33]
[1755357000550,0.246,4405.7,4405.0,0.1888]
[1755357000749,0.246,4406.3,4406.2,0.7089]
[1755357000951,1.0763,4406.3,4406.2,0.8277]
[1755357001154,1.4381,4406.3,4406.2,0.8277]
[1755357001651,1.4381,4406.3,4405.7,0.3962]
[1755357001842,1.0763,4405.9,4405.8,0.8277]
[1755357002048,3.2078,4406.5,4405.8,0.8277]
[1755357002349,4.3999,4406.5,4406.4,0.8277]
[1755357002645,20.918,4408.3,4406.4,0.8277]
[1755357002646,3.4671,4407.0,4406.4,0.8277]
[1755357002851,4.6459,4407.0,4406.9,0.8277]
[1755357003051,4.6459,4407.0,4406.5,0.1188]
[1755357003256,1.4381,4406.3,4406.2,0.6376]
[1755357003554,1.4381,4406.3,4406.2,0.8277]
[1755357004549,0.246,4406.3,4406.2,1.0351]
[1755357004747,0.2593,4406.7,4406.2,0.5201]
[1755357004944,0.246,4406.6,4406.5,0.33]
[1755357005146,1.4381,4406.6,4406.5,0.8277]
[1755357005352,1.4381,4406.6,4406.5,0.6389]
[1755357005550,3.2078,4407.0,4406.9,0.3563]
[1755357005750,3.2078,4407.0,4406.9,0.8277]
[1755357005751,3.6152,4407.0,4406.9,0.8277]
[1755357005950,4.6459,4407.0,4406.9,0.8277]
[1755357006457,4.6459,4407.0,4406.9,0.6389]
[1755357006751,0.571,4406.7,4406.6,0.1188]
[1755357006953,0.1667,4406.3,4406.2,0.8277]
[1755357007252,0.4127,4406.3,4406.2,0.8277]
[1755357007446,0.672,4406.3,4406.2,0.8277]
[1755357007685,0.9127,4406.3,4406.2,0.8277]
[1755357007846,0.6534,4406.3,4406.2,0.8277]
[1755357008046,0.246,4406.3,4406.2,1.0351]
[1755357009048,0.817,4406.3,4406.2,0.8277]
[1755357009352,1.4381,4406.3,4406.2,0.8277]
[1755357009554,0.246,4406.9,4406.3,0.3076]
[1755357009852,1.4381,4406.9,4406.8,0.8277]
[1755357010449,1.4381,4406.9,4406.8,0.6389]
[1755357011955,1.4381,4406.9,4406.8,0.8277]
[1755357015757,1.4381,4406.9,4406.8,0.6389]
[1755357018659,1.4937,4406.2,4406.1,3.2078]
[1755357019650,1.4937,4406.2,4405.1,32.688]
[1755357019651,0.6088,4406.2,4405.0,0.3815]
[1755357019853,1.4937,4405.1,4405.0,1.1674]
[1755357020360,1.0976,4405.1,4405.0,0.8127]
[1755357020560,1.4937,4405.1,4405.0,1.1674]
[1755357022762,1.2442,4405.1,4404.8,3.2078]
[1755357022957,1.4937,4404.8,4404.7,0.00781439]
[1755357023459,4.7015,4404.8,4404.7,0.00781439]
[1755357030572,0.5862,4403.9,4403.8,0.9783]
[1755357030770,1.4937,4403.9,4403.8,1.1674]
[1755357031365,1.0976,4403.9,4403.8,1.1674]
[1755357031573,1.4937,4403.9,4403.8,1.1674]
[1755357032671,1.4937,4403.9,4403.8,1.375]
[1755357033276,1.4937,4403.9,4403.8,1.1674]
[1755357035168,0.5862,4403.9,4403.1,0.10219956]
[1755357035367,1.2442,4403.6,4403.5,0.4312]
[1755357035563,1.4937,4403.6,4403.5,1.1674]
[1755357036366,1.4937,4403.6,4403.5,0.9783]
[1755357036569,0.9075,4403.5,4403.1,0.10219956]
[1755357036771,3.2305,4403.7,4403.1,0.10219956]
[1755357036772,1.4937,4403.2,4403.1,0.10219956]
[1755357037162,4.7015,4403.2,4403.1,0.10219956]
[1755357038967,4.0435,4403.2,4403.1,0.88809956]
[1755357039172,3.7973,4403.2,4403.1,1.47719956]
[1755357039370,4.7015,4403.2,4403.1,1.26959956]
[1755357040171,4.7015,4403.2,4403.1,1.09899956]
[1755357040376,4.7015,4403.2,4403.1,0.36279956]
[1755357040572,0.8514,4403.2,4403.1,1.26959956]
[1755357040776,4.452,4403.7,4403.6,0.5968]
[1755357040977,4.7015,4403.7,4403.6,1.1674]
[1755357041378,4.7015,4403.7,4403.1,0.10219956]
[1755357041577,1.2318,4403.3,4403.2,0.9783]
[1755357041771,1.4937,4403.3,4403.2,0.3547]
[1755357041974,3.2078,4403.7,4403.1,0.10219956]
[1755357041975,1.4937,4403.2,4403.1,0.10219956]
[1755357042180,4.7242,4403.2,4403.1,0.10219956]
[1755357042378,4.7015,4403.2,4403.1,0.10219956]
[1755357043173,4.7242,4403.2,4403.1,0.10219956]
[1755357043677,4.7015,4403.2,4403.1,0.10219956]
[1755357044183,4.7015,4403.2,4403.1,0.36279956]
[1755357044374,4.7015,4403.2,4403.1,0.74429956]
[1755357044983,4.7015,4403.2,4403.1,1.26959956]
[1755357045278,3.2078,4403.2,4403.1,1.47719956]
[1755357045478,0.2495,4403.5,4403.1,1.47719956]
[1755357045674,0.2495,4403.5,4403.4,1.375]
[1755357046182,3.2078,4403.7,4403.4,0.8044]
[1755357046374,3.2078,4403.7,4403.6,1.375]
[1755357046772,3.2078,4404.2,4404.1,0.3362]
[1755357046977,3.6305,4404.2,4404.1,1.375]
[1755357047272,4.7015,4404.2,4404.1,1.1674]
[1755357047578,4.0435,4404.2,4404.1,1.375]
[1755357047777,4.7015,4404.2,4404.1,1.1674]
[1755357048384,4.3054,4404.2,4404.1,1.1674]
[1755357048683,4.3054,4404.2,4404.1,1.3752]
[1755357049273,4.3054,4404.2,4404.1,1.1674]
[1755357049478,0.5211,4404.1,4403.4,0.3858]
[1755357049780,0.5211,4404.1,4403.2,3.66173]
[1755357049781,1.1062,4403.6,4403.5,1.167]
[1755357049983,1.4707,4403.6,4403.5,1.167]
[1755357050181,1.1062,4403.6,4403.5,1.167]
[1755357050383,1.1062,4403.6,4403.5,1.3748]
[1755357050979,0.578,4403.6,4403.5,1.167]
[1755357051186,1.4707,4403.6,4403.5,1.167]
[1755357051381,0.2542,4403.6,4403.5,1.3748]
[1755357051590,0.5211,4403.9,4403.6,0.3971]
[1755357051781,1.1062,4403.9,4403.8,1.167]
[1755357053786,1.4707,4403.9,4403.8,1.167]
[1755357054785,0.2542,4403.9,4403.8,1.3748]
[1755357055384,0.6822,4403.9,4403.8,1.3748]
[1755357055784,0.8449,4403.9,4403.8,1.3748]
[1755357055979,1.1062,4403.9,4403.8,1.3748]
[1755357056191,1.4707,4403.9,4403.8,1.167]
[1755357056994,0.5851,4403.9,4403.4,0.1893]
[1755357057191,0.6822,4403.2,4403.1,0.10219956]
[1755357057391,1.4707,4403.2,4403.1,0.10219956]
[1755357060194,0.5851,4403.2,4402.2,3.5936]
[1755357060394,1.4707,4402.3,4402.2,4.3748]
[1755357061001,3.5316,4403.0,4402.9,0.5919]
[1755357061197,3.6231,4403.0,4402.2,3.2078]
[1755357061495,0.3238,4402.4,4402.3,1.167]
[1755357061699,1.1062,4402.4,4402.3,1.167]
[1755357062106,1.4707,4402.4,4402.3,1.167]
[1755357063301,0.2542,4402.7,4402.3,0.5919]
[1755357063503,3.2078,4403.0,4402.2,3.66183]
[1755357063696,3.2078,4403.0,4402.3,0.5751]
[1755357063697,0.8856,4402.9,4402.3,0.5751]
[1755357063893,0.8856,4402.9,4402.8,0.1722]
[1755357064093,1.1062,4402.9,4402.8,1.167]
[1755357064298,1.1062,4402.9,4402.8,1.3748]
[1755357064492,1.4707,4402.9,4402.8,1.167]
[1755357064701,0.8856,4402.8,4402.2,3.2078]
[1755357064908,1.4707,4402.3,4402.2,4.1855]
[1755357065307,3.2078,4403.0,4401.8,0.1893]
[1755357065308,0.8856,4402.2,4401.8,0.1893]
[1755357065605,0.6838,4401.9,4401.8,1.167]
[1755357065808,0.5211,4402.2,4402.1,1.3748]
[1755357066010,0.6822,4402.2,4402.1,1.3748]
[1755357066199,0.424,4401.8,4401.7,3.2078]
[1755357066400,3.2078,4402.3,4401.8,0.5936]
[1755357066605,0.2542,4402.7,4402.2,1.1855]
[1755357066802,1.1062,4402.7,4402.6,1.1672]
[1755357066998,1.4707,4402.7,4402.2,0.5753]
[1755357067204,0.5851,4402.4,4402.3,0.3858]
[1755357067408,0.2542,4402.4,4402.3,1.3753]
[1755357068309,0.6822,4402.4,4402.3,1.3753]
[1755357068503,1.4707,4402.4,4402.3,1.1672]
[1755357069412,1.1062,4402.4,4402.3,1.1672]
[1755357069605,1.1062,4402.4,4402.3,1.3753]
[1755357070112,0.2542,4402.7,4402.3,0.5919]
[1755357070313,3.7985,4402.8,4402.7,0.5919]
[1755357070604,4.4243,4402.8,4402.7,1.1672]
[1755357070809,4.0527,4402.8,4402.7,1.3753]
[1755357071203,4.314,4402.8,4402.7,1.3753]
[1755357071404,3.6231,4402.8,4402.7,1.3753]
[1755357071604,1.4707,4402.8,4402.7,1.1672]
[1755357072410,0.2542,4403.9,4402.9,0.1895]
[1755357072607,0.6822,4403.8,4403.7,1.1672]
[1755357072907,0.8449,4403.8,4403.7,1.1672]
[1755357073302,0.2542,4403.8,4403.7,1.3753]
[1755357073507,3.2078,4404.0,4402.9,0.0227]
[1755357073508,3.462,4404.0,4403.9,0.5919]
[1755357073707,3.462,4404.0,4403.9,1.3753]
[1755357073908,3.2078,4404.0,4403.9,1.3753]
[1755357074404,0.3645,4403.6,4402.7,0.5753]
[1755357074617,1.1062,4402.8,4402.7,1.1672]
[1755357074912,0.1,4404.2,4402.0,0.45405]
[1755357074913,1.4707,4402.3,4402.2,0.7814]
[1755357075209,0.9435,4402.2,4402.1,0.4197]
[1755357075516,1.4707,4402.2,4402.1,0.8055]
[1755357076813,0.5851,4401.8,4401.7,0.6289]
[1755357077008,1.4707,4401.8,4401.7,0.8055]
[1755357077211,1.4707,4401.8,4401.7,0.9777]
[1755357077410,1.4707,4401.8,4401.7,1.1672]
[1755357079012,0.4928,4401.7,4401.4,0.5799]
[1755357079220,1.4983,4401.7,4401.6,0.8039]
[1755357079519,1.1015,4401.4,4401.3,1.1622]
[1755357079724,1.4983,4401.4,4401.3,1.1622]
[1755357080222,1.4983,4401.4,4401.3,0.9727]
[1755357080513,0.8896,4401.3,4400.9,0.1895]
[1755357080710,0.2452,4401.2,4401.0,0.788]
[1755357080916,0.2452,4401.2,4401.1,1.1622]
[1755357081421,0.2452,4401.2,4401.1,1.3703]
[1755357081611,1.4983,4401.2,4401.1,0.4135]
[1755357082111,0.6087,4401.0,4400.9,0.6379]
[1755357082314,1.4983,4401.0,4400.9,0.6379]
[1755357083013,1.4983,4401.0,4400.9,0.2475]
[1755357083613,0.8896,4400.9,4400.3,3.2078]
[1755357083816,0.6087,4400.5,4400.4,0.4135]
[1755357084320,3.2078,4400.7,4399.7,4.0117]
[1755357084321,0.1772,4399.8,4399.7,4.0117]
[1755357084510,1.1015,4399.8,4399.7,4.37]
[1755357084717,1.4983,4399.8,4399.7,4.37]
[1755357085213,1.4983,4399.8,4399.7,4.1805]
[1755357085413,1.4983,4399.8,4399.7,3.4553]
[1755357086018,1.4983,4399.8,4399.7,4.0117]
[1755357086211,0.8397,4399.8,4399.7,1.1622]
[1755357086417,0.2452,4399.8,4399.7,1.3703]
[1755357086616,0.8397,4399.8,4399.7,1.1622]
[1755357086818,1.4983,4399.8,4399.7,1.1622]
[1755357087622,1.1015,4399.8,4399.7,1.1622]
[1755357088419,0.8397,4399.8,4399.7,1.3703]
[1755357089524,3.2078,4400.7,4399.7,1.393]
[1755357089718,0.6087,4400.6,4400.1,0.1895]
[1755357089924,1.4983,4400.3,4400.2,0.8039]
[1755357090722,1.0055,4399.8,4399.7,1.1622]
[1755357090920,1.4983,4399.8,4399.7,1.1622]
[1755357091512,0.2452,4399.8,4399.7,1.3703]
[1755357092217,0.4928,4400.6,4400.1,0.5799]
[1755357092519,0.4224,4400.6,4400.5,1.3703]
[1755357092717,0.2452,4400.6,4400.5,1.3703]
[1755357092918,0.2476,4400.9,4400.6,0.5799]
[1755357093125,1.1015,4400.8,4400.7,0.5823]
[1755357093421,1.1015,4400.8,4400.7,1.1622]
[1755357093617,0.4224,4400.8,4400.7,1.3703]
[1755357093818,0.2452,4400.8,4400.7,1.3703]
[1755357094118,3.2078,4401.2,4401.1,0.7904]
[1755357094324,4.3093,4401.2,4401.1,0.9727]
[1755357094526,4.7061,4401.2,4401.1,0.9727]
[1755357094820,1.4983,4401.2,4401.1,0.9727]
[1755357095219,1.4983,4401.2,4401.1,1.1622]
[1755357095923,0.4248,4401.6,4401.5,1.3703]
[1755357096223,3.385,4401.8,4401.7,1.1622]
[1755357096423,3.6326,4401.8,4401.7,1.1622]
[1755357096626,0.4224,4401.8,4401.7,1.1622]
[1755357096922,1.1015,4402.0,4401.9,1.1622]
[1755357098821,1.4983,4402.0,4401.9,1.1622]
[1755357100328,1.4983,4401.7,4401.6,21.7769]
[1755357101120,1.4983,4401.7,4401.6,21.9457]
[1755357101331,0.6087,4401.7,4400.9,0.1895]
[1755357101524,0.6087,4401.2,4401.1,24.7431]
[1755357101723,1.4983,4401.2,4401.1,25.1335]
[1755357101921,0.4224,4401.2,4401.1,25.5311]
[1755357102123,0.6444,4401.6,4401.1,25.5311]
[1755357102321,0.3968,4401.6,4401.1,24.7431]
[1755357102524,0.6087,4401.6,4401.5,1.1622]
[1755357102725,1.1015,4401.6,4401.5,1.1622]
[1755357103024,0.6087,4401.2,4400.6,3.4159]
[1755357103329,1.4983,4401.1,4401.0,0.8039]
[1755357104032,1.4983,4401.1,4400.6,3.4159]
[1755357104033,1.4983,4400.7,4400.6,24.1768]
[1755357104325,1.4983,4400.7,4400.6,21.2165]
[1755357104523,1.4983,4400.7,4400.6,20.969]
[1755357104723,0.6625,4400.7,4400.6,20.969]
[1755357104930,0.2452,4400.7,4400.6,22.1312]
[1755357105122,0.2452,4400.7,4400.6,22.3393]
[1755357105728,0.2476,4400.9,4400.6,21.5513]
[1755357105925,0.2452,4400.9,4400.8,1.3703]
[1755357106125,3.2078,4401.2,4400.8,1.3703]
[1755357106328,0.2452,4401.1,4401.0,0.5823]
[1755357106523,0.2452,4401.1,4401.0,1.3703]
[1755357106926,1.1015,4401.1,4401.0,1.1622]
[1755357107124,1.4983,4401.1,4401.0,1.1622]
[1755357107321,0.3469,4401.1,4401.0,0.5823]
[1755357107526,0.8397,4401.1,4401.0,0.5823]
[1755357107823,1.1015,4401.1,4401.0,0.5823]
[1755357108022,1.1015,4401.1,4401.0,1.1622]
[1755357108425,1.1015,4401.6,4401.5,0.5823]
[1755357108627,1.4983,4401.6,4401.5,1.1622]
[1755357108826,1.4983,4401.6,4401.5,0.2475]
[1755357109026,1.4983,4401.6,4401.2,20.978]
[1755357109228,0.4118,4401.4,4401.3,0.7708]
[1755357109432,1.4628,4401.4,4401.3,0.938]
[1755357110031,1.4628,4401.4,4401.3,1.1275]
[1755357110833,0.5858,4401.0,4400.9,3.4499]
[1755357111032,1.4628,4401.0,4400.9,3.6175]
[1755357111234,1.4628,4401.0,4400.9,4.1458]
[1755357111436,1.4628,4401.0,4400.9,1.1275]
[1755357111828,1.0895,4401.0,4400.9,1.3355]
[1755357112122,3.2078,4401.7,4400.9,0.5769]
[1755357112321,1.4628,4401.6,4401.5,1.1275]
[1755357113137,3.2078,4401.7,4401.5,1.3355]
[1755357113340,3.2078,4402.3,4401.6,0.5769]
[1755357113633,0.8384,4401.8,4401.7,1.3355]
[1755357113835,1.0895,4401.8,4401.7,1.3355]
[1755357114436,3.4658,4402.3,4402.2,0.2421]
[1755357114634,3.7115,4402.3,4402.2,22.1025]
[1755357114833,3.7115,4402.3,4402.2,22.3105]
[1755357115136,0.5037,4402.3,4402.2,22.3105]
[1755357115731,0.2457,4403.0,4402.6,0.5769]
[1755357116028,0.432,4402.8,4402.7,22.3105]
[1755357116637,0.8384,4402.8,4402.7,22.3105]
[1755357116834,0.258,4402.8,4402.7,22.3105]
[1755357117441,0.432,4402.8,4402.7,22.3105]
[1755357117629,3.2078,4403.4,4402.8,0.1895]
[1755357117932,3.2078,4403.4,4402.7,20.975]
[1755357117933,4.2973,4403.4,4403.3,1.1275]
[1755357118129,4.2973,4403.4,4403.3,22.0985]
[1755357119535,4.6706,4403.4,4403.3,22.0985]
[1755357119738,1.4628,4403.4,4403.3,22.0985]
[1755357120338,1.0895,4403.8,4403.7,0.5769]
[1755357120529,1.0895,4403.8,4403.7,0.4097]
[1755357120530,1.4628,4403.8,4403.7,0.4097]
[1755357120733,1.4628,4403.8,4403.7,0.2421]
[1755357120934,0.5858,4403.8,4403.7,0.5769]
[1755357121141,0.5858,4403.8,4403.7,0.938]
[1755357121437,1.4628,4403.8,4403.7,0.938]
[1755357122637,1.4628,4403.8,4403.7,21.9]
[1755357125232,1.4628,4403.8,4403.7,21.3717]
[1755357125932,1.0895,4403.5,4403.4,20.945]
[1755357126136,1.4628,4403.5,4403.4,20.945]
[1755357126544,0.432,4403.5,4403.4,22.0725]
[1755357126739,0.432,4403.5,4403.4,22.2805]
[1755357126932,0.358,4404.2,4404.1,0.5769]
[1755357127143,0.1,4404.2,4404.1,25.4893]
[1755357127838,0.1,4404.2,4404.1,28.512]
[1755357128039,0.432,4405.1,4405.0,1.0034]
[1755357128245,0.8384,4405.1,4405.0,22.1604]
[1755357128443,1.0895,4405.1,4405.0,21.9524]
[1755357128639,1.4628,4405.1,4405.0,21.9524]
[1755357128836,0.9591,4405.1,4405.0,20.956]
[1755357129438,1.4628,4405.1,4405.0,20.956]
[1755357131339,1.4628,4405.1,4405.0,21.3657]
[1755357131544,1.4628,4405.1,4405.0,21.9594]
[1755357132138,1.4628,4405.1,4405.0,21.8699]
[1755357132540,1.4628,4405.1,4405.0,21.1981]
[1755357132741,1.4628,4405.1,4405.0,20.956]
[1755357133144,1.1281,4405.1,4405.0,20.956]
[1755357133448,3.2078,4405.6,4405.0,21.8163]
[1755357133649,4.6706,4405.6,4405.5,0.9139]
[1755357134040,4.6706,4405.6,4405.5,0.2421]
[1755357134237,4.6706,4405.6,4405.5,0.9139]
[1755357134747,3.2078,4405.6,4405.5,0.9139]
[1755357134946,4.6706,4405.6,4405.5,1.0034]
[1755357136644,3.8855,4405.6,4405.5,1.2114]
[1755357137041,4.0462,4405.6,4405.5,1.2114]
[1755357137247,4.2973,4405.6,4405.5,1.2114]
[1755357137443,4.2973,4405.6,4405.5,1.0034]
[1755357137641,4.2973,4405.6,4405.5,1.2114]
[1755357137845,0.258,4405.6,4405.5,1.2114]
[1755357138338,0.2457,4405.9,4405.5,0.5528]
[1755357138540,0.5082,4405.8,4405.7,1.2267]
[1755357139045,0.6771,4405.8,4405.7,1.2267]
[1755357139348,0.5948,4405.9,4405.8,1.0314]
[1755357139746,1.0929,4405.9,4405.8,1.0314]
[1755357140148,1.0929,4405.9,4405.8,1.2395]
[1755357140452,1.4901,4405.9,4405.8,1.0314]
[1755357140742,0.4981,4405.8,4405.5,0.3763]
[1755357140950,1.0929,4405.6,4405.5,0.7987]
[1755357141251,1.4901,4405.6,4405.5,0.7987]
[1755357141457,1.4901,4405.6,4405.5,21.7087]
[1755357141745,1.4901,4405.6,4405.5,21.8519]
[1755357141950,1.4901,4405.6,4405.5,21.9414]
[1755357146558,1.0929,4405.6,4405.5,21.9414]
[1755357146759,1.0929,4405.6,4405.5,22.1495]
[1755357147555,0.5948,4405.3,4405.2,3.2078]
[1755357147757,1.4901,4405.3,4405.2,20.897]
[1755357148558,1.4901,4405.3,4405.2,1.0314]
[1755357148758,0.2479,4405.3,4405.2,21.9284]
[1755357148957,0.2479,4405.3,4405.2,22.1365]
[1755357149168,3.2078,4406.1,4405.2,22.1365]
[1755357149169,1.4901,4406.0,4405.9,0.4224]
[1755357149461,1.71342555,4406.0,4405.9,0.6338]
[1755357149760,1.71342555,4406.0,4405.8,20.896]
[1755357149963,1.71342555,4405.9,4405.8,20.896]
[1755357152660,0.81812555,4405.9,4405.3,0.3763]
[1755357152861,3.2078,4406.1,4405.0,15.3895]
[1755357152862,0.5948,4405.5,4405.4,21.6937]
[1755357153062,1.4901,4405.5,4405.4,21.6937]
[1755357153259,1.4901,4405.5,4405.4,21.9264]
[1755357154867,1.0929,4405.5,4405.4,22.1345]
[1755357155058,0.4981,4406.0,4405.5,0.4658]
[1755357155269,1.4901,4406.0,4405.9,0.7987]
[1755357155469,1.71388866,4406.0,4405.9,0.7987]
[1755357155766,0.78988866,4406.0,4405.9,1.0314]
[1755357155959,1.21578866,4406.0,4405.9,1.0314]
[1755357156359,1.71388866,4406.0,4405.9,1.0314]
[1755357157063,0.84012128,4406.0,4405.9,1.0314]
[1755357157261,0.47168866,4406.0,4405.9,1.2395]
[1755357158175,0.47195941,4406.0,4405.9,1.2395]
[1755357159163,0.47195941,4406.0,4405.8,24.1028]
[1755357159164,1.31695941,4406.0,4405.8,24.1028]
[1755357159364,0.5948,4405.4,4405.3,0.9419]
[1755357159568,1.0929,4405.4,4405.3,21.9254]
[1755357160067,1.4901,4405.4,4405.3,22.37912]
[1755357160271,0.2479,4405.4,4405.3,22.58722]
[1755357160463,0.2479,4405.6,4405.5,0.5656]
[1755357160770,0.4981,4405.6,4405.5,1.2395]
[1755357161070,1.0929,4405.6,4405.5,1.2395]
[1755357161362,1.4901,4405.6,4405.5,1.2395]
[1755357161567,1.4901,4405.6,4405.5,1.0314]
[1755357161768,1.4901,4405.6,4405.5,21.9244]
[1755357163068,0.5948,4405.2,4405.1,3.2078]
[1755357163272,1.4901,4405.2,4405.1,23.8333]
[1755357164163,1.4901,4405.2,4405.1,25.0514]
[1755357164367,0.4124,4405.2,4405.1,25.2595]
[1755357164967,0.4124,4405.4,4405.3,0.5902]
[1755357165164,0.63433753,4405.4,4405.3,1.4256]
[1755357165365,0.4124,4405.4,4405.3,1.4256]
[1755357165664,0.4124,4405.4,4405.1,23.8333]
[1755357165665,0.4124,4405.8,4405.7,0.5902]
[1755357165868,0.63434247,4405.8,4405.7,22.3176]
[1755357166267,0.22194247,4405.8,4405.7,22.3176]
[1755357166568,0.4124,4406.0,4405.9,1.4256]
[1755357167964,0.5813,4406.0,4405.9,1.4256]
[1755357168168,1.0929,4406.0,4405.9,1.4256]
[1755357168471,1.4901,4406.0,4405.9,1.2181]
[1755357168771,0.5948,4406.0,4405.9,20.892]
[1755357168975,1.5025,4406.0,4405.9,20.892]
[1755357170376,1.5025,4406.0,4405.5,0.617]
[1755357170670,0.5926,4405.7,4405.6,21.2557]
[1755357170866,1.5003,4405.7,4405.6,21.2557]
[1755357171174,1.5003,4405.7,4405.6,21.8546]
[1755357171465,1.5003,4405.7,4405.6,22.1069]
[1755357171665,3.2078,4406.1,4405.7,0.617]
[1755357171871,0.8234,4406.0,4405.9,0.5989]
[1755357172070,1.2443,4406.0,4405.9,1.2159]
[1755357172371,0.3342,4406.0,4405.9,1.2159]
[1755357172675,1.5003,4406.0,4405.9,1.2159]
[1755357176076,0.256,4407.2,4406.3,0.3873]
[1755357176272,0.4277,4407.2,4407.1,1.2159]
[1755357176478,0.4277,4407.2,4407.1,22.3134]
[1755357176664,0.4277,4407.2,4407.1,22.1059]
[1755357176865,0.256,4407.2,4407.1,22.3134]
[1755357177068,3.2078,4407.7,4407.1,20.89]
[1755357177069,0.4002,4407.6,4407.1,20.89]
[1755357177266,1.5003,4407.2,4407.1,22.1059]
[1755357178973,1.5003,4407.2,4407.1,0.9636]
[1755357179171,1.5003,4407.2,4407.1,21.8506]
[1755357179773,1.5003,4407.2,4407.1,22.1029]
[1755357180181,0.8486,4407.2,4407.1,22.1029]
[1755357180383,1.5003,4407.2,4407.1,22.1029]
[1755357180679,0.4277,4407.2,4407.1,22.3104]
[1755357180870,0.256,4407.2,4407.1,22.3104]
[1755357181071,0.5075,4407.9,4407.8,0.1664]
[1755357181281,0.5857,4407.9,4407.8,21.4859]
[1755357181479,0.5857,4407.9,4407.8,22.1029]
[1755357181678,0.8441,4407.9,4407.8,22.1029]